[Event "SUI-ch Bundesturnier TP-1 2022"]
[Site "Payerne"]
[Date "2022.05.29"]
[Round "7.4"]
[White "Kamber, Bruno"]
[Black "Stijve, Theo"]
[Result "0-1"]
[ECO "B45"]
[WhiteElo "2225"]
[BlackElo "2341"]
[Annotator "TA"]
[PlyCount "128"]
[EventDate "2022.05.26"]
[EventType "swiss"]
[EventCountry "SUI"]
[SourceTitle "playchess.com"]
[Source "ChessBase"]
[SourceQuality "1"]
[TimeControl "5400+30"]

{[%evp 11,128,11,10,8,12,2,19,0,30,28,31,26,28,19,26,29,56,49,60,45,60,62,100,92,92,93,83,88,82,75,77,95,131,132,133,131,146,120,140,0,130,0,133,0,139,139,142,135,120,0,14,0,0,0,0,0,9,-7,0,-4,0,0,-4,-8,-3,-152,-167,-172,-172,-168,-159,-159,-159,-143,-75,-156,-162,-174,-159,-272,-268,-270,-252,-257,-195,-179,0,-247,-254,-254,-254,-236,-192,-253,-190,-250,-251,-255,-233,-249,-299,-286,-301,-499,-495,-510,-497,-436,-405,-357,-330,-29978,-29979,-29987,-29988,-29997,-29996,-29998,-29999]} 1. e4 {[%emt 0:00:03]} c5 {[%emt 0:06:51]} 2. Nf3 {[%emt 0:00:07]} e6 {[%emt 0:00:08]} 3. d4 {[%emt 0:03:03]} cxd4 {[%emt 0:00:11]} 4. Nxd4 {[%emt 0:00:10]} Nf6 {[%emt 0:00:04]} 5. Nc3 {[%emt 0:00:15]} Nc6 {[%emt 0:00:05]} 6. a3 {[%emt 0:07:35]} Be7 {[%emt 0:00:52]} 7. Nxc6 {[%emt 0:01:16] outshines the older 7.Be2. B45: Sicilian Four Knights.} bxc6 {[%emt 0:01:37]} 8. e5 {[%emt 0:00:16]} Nd5 {[%emt 0:00:12]} 9. Ne4 {[%emt 0:00:10] The position is equal.} f5 {[%emt 0:05:14]} 10. exf6 {[%emt 0:00:47]} Nxf6 {[%emt 0:02:54]} 11. Nd6+ {[%emt 0:00:32] [#]} Bxd6 $146 {[%emt 0:03:54]} ({Predecessor:} 11... Kf8 12. Bg5 Qa5+ 13. Bd2 Qe5+ 14. Be2 Bxd6 15. Bc3 Qd5 16. Bf3 Qxd1+ 17. Rxd1 Ke7 {0-1 (41) Demestres Lopez,R (1955)-Canellas Magide,L (2215) Barcelona 2004}) 12. Qxd6 {[%emt 0:00:15]} Qb6 {[%emt 0:00:29][%cal Ob6f2]} 13. Bd3 {[%emt 0:04:07]} c5 {[%emt 0:07:17]} 14. Bf4 {[%emt 0:05:48]} Bb7 {[%emt 0:02:31]} 15. O-O {[%emt 0:04:24]} Rc8 {[%emt 0:02:52]} 16. c4 {[%emt 0:05:08]} Rc6 {[%emt 0:06:10]} 17. Qb8+ {[%emt 0:00:22]} Bc8 {[%emt 0:06:34]} 18. b4 {[%emt 0:07:20]} d6 {[%emt 0:08:35]} 19. Qxb6 {[%emt 0:12:29]} axb6 {[%emt 0:01:37]} 20. b5 {[%emt 0:09:35]} Rc7 {[%emt 0:02:32]} 21. a4 $36 {[%emt 0:00:04][%mdl 2048] White has strong initiative.} ({Don't play} 21. Bxd6 Rd7 22. Bxc5 bxc5 $15) 21... Ke7 {[%emt 0:05:00]} 22. a5 {[%emt 0:00:50]} bxa5 {[%emt 0:00:32]} 23. Rxa5 {[%emt 0:00:28]} Nd7 {[%emt 0:01:24]} 24. Bg5+ {[%emt 0:07:40]} Kf7 {[%emt 0:01:02]} 25. Bf4 {[%emt 0:01:45] This bishop pair is nice.} Ke7 {[%emt 0:03:08]} 26. Bg5+ {[%emt 0:00:24]} Kf7 {[%emt 0:00:08]} 27. Bf4 {[%emt 0:00:07]} ({White should try} 27. Rc1 $16) 27... e5 {[%emt 0:01:54]} (27... Ke7 $1 $11) 28. Bd2 $16 {[%emt 0:01:22]} Nb6 {[%emt 0:01:09]} 29. f4 {[%emt 0:00:28] [#] Threatens to win with fxe5+.} e4 {[%emt 0:01:55]} 30. Bxe4 {[%emt 0:03:53]} ({Only move:} 30. Be2 $16) 30... Nxc4 $11 {[%emt 0:00:50]} 31. Bd5+ {[%emt 0:01:40]} Be6 {[%emt 0:00:10]} 32. Bxc4 {[%emt 0:02:46]} Bxc4 {[%emt 0:00:34]} 33. Rc1 {[%emt 0:00:07]} Bd3 {[%emt 0:03:48]} 34. Rc3 {[%emt 0:00:25]} Be4 {[%emt 0:01:15]} 35. Re3 {[%emt 0:06:27]} Re7 {[%emt 0:01:26]} 36. b6 {[%emt 0:00:35]} Rb8 {[%emt 0:00:41]} 37. Ra7 {[%emt 0:00:19] Hoping for Rxe4.} d5 {[%emt 0:00:43]} 38. Rc3 {[%emt 0:05:34]} (38. Rb3 $11) 38... Rxb6 $17 {[%emt 0:02:58]} 39. Rxe7+ {[%emt 0:00:26]} Kxe7 {[%emt 0:00:02]} 40. Rxc5 {[%emt 0:00:09][%mdl 4096] Endgame KRB-KRB} Rb2 {[%emt 0:00:27]} 41. Bc3 {[%emt 0:02:21]} Rxg2+ {[%emt 0:00:18]} 42. Kf1 {[%emt 0:00:07]} Kd6 {[%emt 0:04:12] Black is more active.} (42... Ke6 $142 43. h4 g6) 43. Ra5 {[%emt 0:00:16]} ({Better is} 43. Rc8) 43... g6 {[%emt 0:00:50]} 44. h4 {[%emt 0:01:06]} Rh2 {[%emt 0:02:04]} 45. Bf6 {[%emt 0:03:33]} (45. Ra6+ $17 Kc5 46. Be1) 45... Ke6 $19 {[%emt 0:00:22]} 46. Bg5 {[%emt 0:00:58]} Kf5 {[%emt 0:00:41]} 47. Ke1 {[%emt 0:00:21]} Bf3 {[%emt 0:00:58]} 48. Ra4 {[%emt 0:01:56]} Be4 $2 {[%emt 0:01:16]} (48... Re2+ $19 49. Kf1 Rh2) 49. Rd4 $2 {[%emt 0:00:53]} (49. Ra5 $1 $11) 49... Kg4 {[%emt 0:00:20]} 50. Rd2 {[%emt 0:00:30]} Rh1+ {[%emt 0:00:36]} 51. Kf2 {[%emt 0:00:17]} Rh3 {[%emt 0:01:27]} 52. Ke1 {[%emt 0:01:19]} (52. Re2 $142) 52... Rb3 {[%emt 0:00:59]} 53. Kf2 {[%emt 0:00:27]} (53. Ra2 $142) 53... Kh5 {[%emt 0:00:40]} 54. Ke1 {[%emt 0:00:17]} Rh3 {[%emt 0:01:02]} 55. Rf2 {[%emt 0:00:12]} d4 {[%emt 0:00:48][%cal Bd5d4,Bd4d3][%mdl 32]} 56. Bf6 {[%emt 0:00:23]} d3 {[%emt 0:00:32] Inhibits Re2. White must now prevent ...Kg4.} 57. Kd2 $2 {[%emt 0:00:15]} (57. f5 {was necessary.} gxf5 58. Rf4) 57... Kg4 {[%emt 0:00:28]} 58. Bg5 {[%emt 0:00:28]} Bf5 {[%emt 0:01:42]} 59. Kc3 {[%emt 0:00:48]} Rh1 {[%emt 0:00:46]} 60. Rb2 {[%emt 0:02:23]} Kf3 {[%emt 0:00:25] ...Ke3 is the strong threat.} 61. Rb8 $2 {[%emt 0:01:24] [#]} (61. Be7 $19) 61... Rc1+ {[%emt 0:02:04] Black mates.} 62. Kd2 {[%emt 0:00:16]} Rc2+ {[%emt 0:00:05]} 63. Kd1 {[%emt 0:00:14]} Bg4 {[%emt 0:00:21][%cal Rf3f2]} 64. Re8 {[%emt 0:00:20]} Kf2+ {[%emt 0:00:09] Weighted Error Value: White=0.47/Black=0.15 (very precise)} 0-1

[Event "SUI-ch Bundesturnier TP-1 2022"]
[Site "Payerne"]
[Date "2022.05.29"]
[Round "7.5"]
[White "Asllani, Dorian"]
[Black "Collin, Moritz Valentin"]
[Result "1-0"]
[ECO "E38"]
[WhiteElo "2116"]
[BlackElo "2052"]
[Annotator "TA"]
[PlyCount "69"]
[EventDate "2022.05.26"]
[EventType "swiss"]
[EventCountry "SUI"]
[SourceTitle "playchess.com"]
[Source "ChessBase"]
[SourceQuality "1"]
[TimeControl "5400+30"]

{[%evp 12,69,16,0,0,0,8,-32,26,10,24,24,27,24,22,35,39,0,43,29,48,12,20,8,0,3,20,28,200,137,137,137,137,137,137,137,205,204,204,189,343,325,323,310,363,353,1244,1247,1245,1212,1163,528,528,528,533,529,514,493,3087,1379]} 1. d4 {[%emt 0:00:07]} Nf6 {[%emt 0:00:04]} 2. c4 {[%emt 0:00:12]} e6 {[%emt 0:00:04]} 3. Nc3 {[%emt 0:00:10]} Bb4 {[%emt 0:00:04]} 4. Qc2 {[%emt 0:00:16]} c5 {[%emt 0:00:06]} 5. e3 {[%emt 0:00:21]} Nc6 {[%emt 0:00:20]} 6. Nf3 {[%emt 0:00:07]} d5 {[%emt 0:00:44]} 7. a3 {[%emt 0:00:48]} Bxc3+ {[%emt 0:00:32] E38: Nimzo-Indian: Classical: 4...c5.} 8. bxc3 {[%emt 0:00:25]} O-O {[%emt 0:01:57]} 9. Rb1 {[%emt 0:18:21] [#]} dxc4 $146 {[%emt 0:13:28]} (9... b6 $15) ({Predecessor:} 9... b6 10. cxd5 exd5 11. Bb5 Ne7 12. dxc5 bxc5 13. O-O Qc7 14. Be2 Bf5 15. Bd3 Bxd3 16. Qxd3 {½-½ (39) Schlindwein,R (2409)-Cvitan,O (2489) Baden 2018}) 10. Bxc4 $11 {[%emt 0:01:02]} Qc7 {[%emt 0:07:35]} 11. Bd3 {[%emt 0:07:43]} Rd8 {[%emt 0:12:48]} 12. Bb2 {[%emt 0:23:38]} b6 {[%emt 0:08:41]} 13. O-O {[%emt 0:01:13]} Bb7 {[%emt 0:04:20]} 14. dxc5 {[%emt 0:01:13]} bxc5 {[%emt 0:01:01]} (14... Na5 {feels hotter.} 15. cxb6 axb6 16. c4 Rxd3 17. Qxd3 Be4) 15. c4 {[%emt 0:00:15]} h6 {[%emt 0:08:25]} 16. Bxf6 {[%emt 0:24:09]} gxf6 {[%emt 0:00:12]} 17. Rfd1 {[%emt 0:00:14] aiming for Qb2.} Rab8 {[%emt 0:13:00]} 18. Rb5 {[%emt 0:01:34]} Ne5 {[%emt 0:03:57]} 19. Nxe5 {[%emt 0:00:18]} Qxe5 {[%emt 0:00:47] [#] A mistake that costs the game.} (19... fxe5 $11 {and Black has nothing to worry.} 20. h3 a6) 20. Rxb7 $1 {[%emt 0:00:40][%mdl 512]} Rxb7 {[%emt 0:02:07]} 21. Bh7+ {[%emt 0:00:07][%mdl 64] Discovered Attack} Kg7 {[%emt 0:02:00]} 22. Rxd8 {[%emt 0:00:14][%csl Gh7][%cal Rd8g8]} f5 {[%emt 0:01:29]} 23. Bxf5 {[%emt 0:00:56]} ({Reject} 23. Bg8 $6 Qf6 24. Rd1 (24. Qd1 $2 Qxd8 25. Qf1 Kxg8 $19) 24... Kxg8 $11) 23... Rb2 {[%emt 0:06:34] [#]} (23... Qxf5 $16 24. Qxf5 exf5) 24. Qc1 $1 $18 {[%emt 0:00:59]} exf5 {[%emt 0:00:58][%mdl 4096] Endgame KQR-KQR} 25. Rd5 $36 {[%emt 0:01:20][%mdl 2048] White has strong initiative.} Qb8 {[%emt 0:01:56] [#]} (25... Qf6 {might work better.} 26. g3 (26. Rxc5 Rc2 $16) 26... Ra2) 26. Qc3+ $1 {[%emt 0:00:28]} ({But not} 26. Rxf5 $2 Rb1 27. g4 Rxc1+ $19) 26... Kg6 {[%emt 0:05:58] ( -> ...Rb1+)} 27. g3 {[%emt 0:00:34]} Ra2 {[%emt 0:01:16]} 28. Qd3 {[%emt 0:00:29] Inhibits Qb1+.} Qb2 $2 {[%emt 0:02:22]} (28... Ra1+ 29. Kg2 Qb1 30. Qxb1 Rxb1 31. Rxc5 Rb6) 29. Qxf5+ {[%emt 0:00:23] White is clearly winning.} Kg7 {[%emt 0:00:08]} 30. Qg4+ {[%emt 0:02:04]} Kh7 {[%emt 0:00:43]} 31. Qf3 {[%emt 0:03:25]} (31. Qf4 $142 Kg7 32. Rd6 Qb1+ 33. Kg2 Qb7+ 34. e4) 31... Kg7 {[%emt 0:00:30]} 32. Rxc5 {[%emt 0:01:58] Strongly threatening Qg4+.} Ra1+ {[%emt 0:00:53]} 33. Kg2 {[%emt 0:00:06]} Qb1 {[%emt 0:00:44][%csl Ga1][%cal Rb1f1]} 34. Qg4+ {[%emt 0:00:13]} Kf6 {[%emt 0:01:03]} (34... Qg6 $142 35. Qd4+ Qf6) 35. Rc6+ {[%emt 0:02:44] Weighted Error Value: White=0.24 (precise) /Black=0.34} 1-0

[Event "SUI-ch Bundesturnier TP-1 2022"]
[Site "Payerne"]
[Date "2022.05.29"]
[Round "7.6"]
[White "Laurent-Paoli, Pierre"]
[Black "Hugentobler, Patrick"]
[Result "1/2-1/2"]
[ECO "C13"]
[WhiteElo "2486"]
[BlackElo "2161"]
[Annotator "TA"]
[PlyCount "83"]
[EventDate "2022.05.26"]
[EventType "swiss"]
[EventCountry "SUI"]
[SourceTitle "playchess.com"]
[Source "ChessBase"]
[SourceQuality "1"]
[TimeControl "5400+30"]

{[%evp 13,83,23,31,3,16,9,29,0,11,0,0,0,13,0,0,0,0,0,0,-16,40,35,33,33,111,33,39,34,36,3,14,8,8,0,4,0,8,0,0,0,0,0,0,0,0,0,0,0,0,0,0,0,0,0,0,0,0,0,0,0,0,0,0,0,0,0,0,0,0,0,0,0]} 1. e4 {[%emt 0:00:55]} e6 {[%emt 0:00:08]} 2. d4 {[%emt 0:00:09]} d5 {[%emt 0:00:04]} 3. Nc3 {[%emt 0:00:04]} Nf6 {[%emt 0:00:07]} 4. Bg5 {[%emt 0:00:04]} dxe4 {[%emt 0:00:09]} 5. Nxe4 {[%emt 0:00:05]} Nbd7 {[%emt 0:00:08]} 6. Nxf6+ {[%emt 0:02:16]} Nxf6 {[%emt 0:00:10]} 7. Nf3 {[%emt 0:01:44]} c5 {[%emt 0:02:29] 7...h6 is a critical line.} 8. Ne5 {[%emt 0:09:55] C13: French: Classical System: 4 Bg5 Be7, Alekhine-Chatard Attack.} Qa5+ {[%emt 0:07:48]} 9. Bd2 {[%emt 0:03:23] [#]} Qc7 $146 {[%emt 0:03:59]} ({Predecessor:} 9... Qb6 10. Nc4 Qc6 11. Ne5 Qe4+ 12. Be3 a6 13. Qd2 cxd4 14. Qxd4 Qxd4 15. Bxd4 Nd5 {1-0 (57) Shadrina,T (2401)-Dushenok,A (2238) Izmir 2004}) 10. Bb5+ {[%emt 0:00:36] White has an edge.} Bd7 {[%emt 0:00:19]} 11. Nxd7 {[%emt 0:01:35]} Nxd7 {[%emt 0:00:08]} 12. dxc5 {[%emt 0:08:14]} Bxc5 {[%emt 0:11:05]} 13. Qh5 $36 {[%emt 0:09:18][%mdl 2048] aiming for Bxd7+. White has the initiative.} O-O-O {[%emt 0:04:51][%cal Oc5f2]} 14. O-O-O {[%emt 0:00:53]} Nf6 {[%emt 0:03:21]} 15. Qe2 {[%emt 0:10:21]} Qb6 {[%emt 0:04:19]} 16. Kb1 {[%emt 0:01:08]} Ne4 {[%emt 0:04:56]} 17. Qxe4 $14 {[%emt 0:03:37]} Qxb5 {[%emt 0:00:06]} 18. Bc3 {[%emt 0:01:23]} Rxd1+ {[%emt 0:00:21]} 19. Rxd1 {[%emt 0:00:03] Qe5 is the strong threat.} Rd8 {[%emt 0:00:10]} 20. Rxd8+ {[%emt 0:03:53]} Kxd8 {[%emt 0:00:05][%mdl 4096] Endgame KQB-KQB} 21. b4 {[%emt 0:02:33] [#] Black must now prevent Qe5.} Be7 {[%emt 0:04:36] The position is equal.} 22. a3 {[%emt 0:03:42]} ({Much weaker is} 22. Qxh7 Bxb4 23. Bxb4 Qxb4+ 24. Kc1 Qf4+ 25. Kb1 g6 $15) 22... a5 {[%emt 0:02:07]} 23. Kb2 {[%emt 0:04:49]} axb4 {[%emt 0:01:07]} 24. axb4 {[%emt 0:00:08]} g6 {[%emt 0:06:25]} 25. f3 {[%emt 0:01:50]} Kd7 {[%emt 0:01:09]} 26. Qd4+ {[%emt 0:01:13]} Kc6 {[%emt 0:03:00]} 27. Qf4 {[%emt 0:02:48]} f5 {[%emt 0:02:33]} 28. h3 {[%emt 0:12:39]} e5 {[%emt 0:09:44]} 29. Qxe5 {[%emt 0:00:52]} Qxe5 {[%emt 0:00:10]} 30. Bxe5 {[%emt 0:00:03]} Bxb4 $11 {[%emt 0:00:06] KB-KB} 31. Kb3 {[%emt 0:00:09]} Bc5 {[%emt 0:00:25]} 32. c4 {[%emt 0:00:16]} b5 {[%emt 0:00:11]} 33. g4 {[%emt 0:00:11]} bxc4+ {[%emt 0:01:11]} 34. Kxc4 {[%emt 0:00:03]} fxg4 {[%emt 0:00:27]} 35. fxg4 {[%emt 0:00:05]} Ba3 {[%emt 0:01:20]} 36. Kd4 {[%emt 0:00:05]} Kd7 {[%emt 0:00:16]} 37. Kd5 {[%emt 0:00:08]} Ke7 {[%emt 0:00:18]} 38. Bd4 {[%emt 0:00:09]} Kf7 {[%emt 0:00:11]} 39. h4 {[%emt 0:00:15]} Be7 {[%emt 0:00:16]} 40. h5 {[%emt 0:00:07]} gxh5 {[%emt 0:00:07]} 41. gxh5 {[%emt 0:00:02]} Ba3 {[%emt 0:00:20]} 42. Ke4 {[%emt 0:00:12] Weighted Error Value: White=0.06 (flawless) /Black=0.06 (flawless)} 1/2-1/2

[Event "SUI-ch Bundesturnier TP-1 2022"]
[Site "Payerne"]
[Date "2022.05.29"]
[Round "7.7"]
[White "Gschnitzer, Adrian"]
[Black "Bischofberger, Dario"]
[Result "1-0"]
[ECO "C10"]
[WhiteElo "2441"]
[BlackElo "2208"]
[Annotator "TA"]
[PlyCount "97"]
[EventDate "2022.05.26"]
[EventType "swiss"]
[EventCountry "SUI"]
[SourceTitle "playchess.com"]
[Source "ChessBase"]
[SourceQuality "1"]
[TimeControl "5400+30"]

{[%evp 14,97,20,0,0,0,13,0,0,-34,-21,-39,7,0,17,12,33,41,64,51,48,18,29,8,32,31,27,0,12,0,27,8,8,11,3,0,7,27,175,165,356,145,162,126,137,143,189,190,183,192,213,147,151,157,182,141,221,214,220,128,252,259,379,375,373,337,344,312,327,308,327,314,318,262,529,527,1094,1026,1820,1617,1578,1556,1374,1119,1349,1225]} 1. e4 {[%emt 0:00:02]} e6 {[%emt 0:02:49]} 2. d4 {[%emt 0:00:02]} d5 {[%emt 0:00:09]} 3. Nc3 {[%emt 0:00:08]} Nf6 {[%emt 0:01:12]} 4. Bg5 {[%emt 0:00:09]} dxe4 {[%emt 0:00:41]} 5. Nxe4 {[%emt 0:00:06]} Nbd7 {[%emt 0:00:06]} 6. Nf3 {[%emt 0:00:30][%cal Bg1f3,Bf3e5,Be5c4][%mdl 32]} h6 {[%emt 0:00:19]} 7. Nxf6+ {[%emt 0:02:08]} Nxf6 {[%emt 0:00:15]} 8. Be3 {[%emt 0:03:03]} Bd6 {[%emt 0:03:11] C10: French with 3 Nc3: Unusual Black 3rd moves and 3...dxe4.} 9. Bd3 {[%emt 0:01:13]} O-O {[%emt 0:01:24] [#] The main line 9...0-0 scores better than 9...b6.} 10. Ne5 $146 {[%emt 0:18:59]} ({Predecessor:} 10. Qe2 b6 11. O-O-O Bb7 12. Ne5 Nd5 13. Bd2 Qh4 14. Nf3 Qf6 15. Qe4 Qg6 16. Qxg6 fxg6 17. Bxg6 {½-½ (34) Kokarev,D (2576)-Grachev,B (2615) Sochi 2022}) 10... c5 {[%emt 0:07:51] The position is equal.} 11. Nc4 {[%emt 0:03:03] Inhibits Qa5+.} cxd4 {[%emt 0:19:13]} 12. Bxd4 {[%emt 0:00:27]} Be7 {[%emt 0:06:39]} (12... e5 $15 {is superior.} 13. Bc3 Bc7) 13. c3 {[%emt 0:02:58]} Bd7 {[%emt 0:08:40][%cal Bc8d7,Bd7c6,Bc6d5][%mdl 32]} 14. Qe2 {[%emt 0:06:14]} Bc6 {[%emt 0:03:12]} 15. O-O-O {[%emt 0:01:07]} Bd5 {[%emt 0:04:32]} 16. Kb1 {[%emt 0:01:26] White is more active.} Qc7 {[%emt 0:12:59]} 17. f3 {[%emt 0:05:18]} Rfd8 {[%emt 0:03:30]} 18. g4 {[%emt 0:04:22]} b5 {[%emt 0:01:27]} 19. Ne3 {[%emt 0:03:41]} b4 {[%emt 0:00:56]} 20. Nxd5 {[%emt 0:04:49]} Rxd5 {[%emt 0:10:57]} 21. Bc4 {[%emt 0:02:49]} Rd7 {[%emt 0:02:41]} (21... bxc3 $5 22. Bxc3 Rc5 $11) 22. Bb5 {[%emt 0:09:38]} Rd5 {[%emt 0:01:10]} 23. c4 {[%emt 0:02:29]} Rdd8 {[%emt 0:01:02]} 24. h4 {[%emt 0:00:46]} a6 {[%emt 0:06:33]} 25. Ba4 {[%emt 0:00:21]} Qa5 {[%emt 0:00:09]} (25... Rac8 $1 $11 {and Black has nothing to worry.}) 26. Bc2 $18 {[%emt 0:00:59][%cal Og4g5] A strong pair of Bishops.} Nd7 $2 {[%emt 0:01:16]} (26... Bc5) 27. Qe4 {[%emt 0:01:41]} (27. g5 $18 {and the rest is easy.}) 27... Nf8 $16 {[%emt 0:00:16]} 28. b3 {[%emt 0:03:03]} Rac8 {[%emt 0:00:36]} 29. f4 {[%emt 0:00:56]} Rxd4 {[%emt 0:00:28]} (29... Qc7 $16 {was worth a try.} 30. g5 h5) 30. Rxd4 $40 {[%emt 0:02:28][%mdl 128] White has strong attack.} ({Resist} 30. Qxd4 h5 31. g5 g6) 30... Bf6 {[%emt 0:00:01]} 31. Rd2 $1 {[%emt 0:01:34]} g6 {[%emt 0:00:49]} 32. Bd1 {[%emt 0:05:32]} Bc3 {[%emt 0:00:24]} 33. Rd3 {[%emt 0:00:44]} Bg7 {[%emt 0:00:14]} 34. g5 {[%emt 0:01:17]} h5 {[%emt 0:00:16]} (34... Rd8 $16 35. Rxd8 Qxd8) 35. Bf3 $1 {[%emt 0:00:01]} Qc5 {[%emt 0:01:27]} 36. Rhd1 {[%emt 0:00:12]} (36. Qe3 $18) 36... a5 {[%emt 0:00:21] [#]} (36... Qf2 $16 {keeps fighting.} 37. R3d2 Qc5) 37. Qe3 $1 {[%emt 0:00:41]} Qc7 {[%emt 0:00:16]} (37... Qe7 $142 38. Rd6 a4) 38. Rd6 {[%emt 0:01:05]} a4 {[%emt 0:00:47]} 39. Rc6 {[%emt 0:01:03]} Qb8 {[%emt 0:00:18]} 40. Rxc8 Qxc8 {[%emt 0:00:03] [#]} 41. Rd6 $1 {[%emt 0:06:55]} axb3 {[%emt 0:00:35]} 42. axb3 {[%emt 0:00:01]} e5 {[%emt 0:00:58]} 43. fxe5 {[%emt 0:00:02]} Qh3 $2 {[%emt 0:00:37]} (43... Qf5+ 44. Qe4 Qc8) 44. c5 {[%emt 0:01:43] White is clearly winning.} Qg3 {[%emt 0:00:28]} 45. c6 {[%emt 0:01:15] Threatens to win with c7.} Bxe5 {[%emt 0:00:15]} 46. c7 {[%emt 0:00:29]} Bf4 {[%emt 0:00:50]} 47. Qe4 {[%emt 0:01:01]} Bxd6 {[%emt 0:00:35]} 48. c8=Q {[%emt 0:00:09]} Qg1+ {[%emt 0:00:12]} 49. Qc1 {[%emt 0:00:21] Weighted Error Value: White=0.16 (very precise) /Black=0.40} 1-0

[Event "SUI-ch Bundesturnier TP-1 2022"]
[Site "Payerne"]
[Date "2022.05.29"]
[Round "7.8"]
[White "Loeffler, Markus"]
[Black "Manko, Mariya"]
[Result "1-0"]
[ECO "A31"]
[WhiteElo "2272"]
[BlackElo "1862"]
[Annotator "TA"]
[PlyCount "103"]
[EventDate "2022.05.26"]
[EventType "swiss"]
[EventCountry "SUI"]
[SourceTitle "playchess.com"]
[Source "ChessBase"]
[SourceQuality "1"]
[TimeControl "5400+30"]

{[%evp 15,103,35,34,34,29,9,12,14,15,11,73,0,0,-7,-2,0,0,-60,-57,-49,-41,-78,0,0,0,0,10,4,14,0,4,0,0,0,8,8,70,73,98,100,127,75,494,496,479,486,468,102,109,102,102,102,102,102,102,102,109,109,109,109,109,110,110,117,665,550,5891,5010,12837,12837,12838,12838,12843,12842,6705,6705,12845,12845,12846,12847,12847,12847,12849,12849,12850,27999,27999,27998,27999,27998]} 1. Nf3 {[%emt 0:06:31]} c5 {[%emt 0:00:25]} 2. g3 {[%emt 0:00:02]} g6 {[%emt 0:00:32]} 3. Bg2 {[%emt 0:00:02]} Bg7 {[%emt 0:00:11]} 4. O-O {[%emt 0:00:02]} Nf6 {[%emt 0:00:30]} 5. c4 {[%emt 0:00:23]} Nc6 {[%emt 0:01:08]} 6. d4 {[%emt 0:00:26]} O-O {[%emt 0:12:36]} 7. dxc5 {[%emt 0:07:08]} Qa5 {[%emt 0:01:58]} 8. Nc3 {[%emt 0:04:38]} Qxc5 {[%emt 0:02:26]} 9. b3 {[%emt 0:10:11] A31: Symmetrical English: 2 Nf3 Nf6 3 d4.} Rd8 {[%emt 0:07:03]} 10. Be3 {[%emt 0:26:40]} Qh5 {[%emt 0:10:58]} 11. Rc1 {[%emt 0:01:57] The position is equal.} d5 {[%emt 0:11:20] [#]} 12. cxd5 $146 {[%emt 0:00:16]} ({Predecessor:} 12. Nxd5 Nxd5 13. cxd5 Rxd5 14. Nd2 Ra5 15. a4 Bg4 16. Bf3 {1-0 (16) Wittal,W-Carlsen,T DESC email 2016}) 12... Bh3 {[%emt 0:04:30]} (12... Nxd5 $11 13. Nxd5 Rxd5) 13. Bxh3 {[%emt 0:14:25]} (13. Bg5 $1 $16) 13... Qxh3 $11 {[%emt 0:00:50]} 14. Ng5 $132 {[%emt 0:00:02][%mdl 2048] White is fighting back} Qh5 {[%emt 0:01:30]} 15. h4 {[%emt 0:03:20]} h6 {[%emt 0:01:22]} 16. Nge4 {[%emt 0:04:27]} (16. Nf3 $11) 16... Nxe4 $15 {[%emt 0:02:31]} 17. Nxe4 {[%emt 0:00:03]} Rxd5 {[%emt 0:00:20]} 18. Qc2 {[%emt 0:00:59] [#]} Nd4 {[%emt 0:14:15]} ({Black should try} 18... Bd4 $1 $17) 19. Bxd4 $11 {[%emt 0:00:14]} Bxd4 {[%emt 0:02:30]} 20. e3 {[%emt 0:00:37]} Be5 {[%emt 0:00:20]} 21. Rfd1 {[%emt 0:01:57]} Rxd1+ {[%emt 0:00:49]} 22. Rxd1 {[%emt 0:00:19]} Qg4 {[%emt 0:02:49]} 23. Kg2 {[%emt 0:10:30]} Rc8 {[%emt 0:00:46]} 24. Qd3 {[%emt 0:00:01]} Kg7 {[%emt 0:01:00]} 25. Qd5 {[%emt 0:00:34][%csl LRb7,LRe5]} Qf5 {[%emt 0:18:54]} (25... Bf6 $11) 26. Qxb7 $14 {[%emt 0:01:36]} Rc2 {[%emt 0:00:17]} 27. Rd2 {[%emt 0:00:20]} Rc1 {[%emt 0:00:29]} 28. Qd5 {[%emt 0:01:57]} ({But not} 28. f4 $6 Bc7 $11) ({White should play} 28. Rd7) 28... g5 $2 {[%emt 0:01:18][%mdl 8192]} (28... e6 $16 29. Qd3 g5) 29. f4 $18 {[%emt 0:02:01]} gxf4 {[%emt 0:00:05]} 30. exf4 {[%emt 0:00:05]} Re1 {[%emt 0:00:09]} 31. Qxe5+ {[%emt 0:01:35]} (31. Rd4 $18 {and White stays clearly on top.}) 31... Qxe5 $16 {[%emt 0:00:08][%mdl 64] Remove Defender} 32. fxe5 {[%emt 0:00:03]} Rxe4 $18 {[%emt 0:00:05][%mdl 4096] Endgame KR-KR} 33. Rd7 $1 {[%emt 0:00:06][%csl LRa7,LRe7]} Re2+ {[%emt 0:00:24]} 34. Kf3 {[%emt 0:00:02]} Rxa2 {[%emt 0:00:10]} 35. Rxe7 {[%emt 0:00:04] Black must now prevent e6.} Rb2 {[%emt 0:01:10]} 36. Rb7 {[%emt 0:00:05] e6 is the strong threat.} Kf8 {[%emt 0:01:16]} 37. Kg4 {[%emt 0:00:50] aiming for Kh5.} a5 {[%emt 0:00:06][%cal Oa5a4]} 38. Rb5 {[%emt 0:01:38]} Kg7 {[%emt 0:00:53]} 39. Kh5 {[%emt 0:00:05]} Rb1 $2 {[%emt 0:00:25][%mdl 8192]} (39... Re2 $16 40. Rxa5 Re3) 40. g4 {[%emt 0:00:30][%cal Bg3g4,Bg4g5,Bg5g6,Bg6g7][%mdl 32] Hoping for e6.} Ra1 {[%emt 0:00:16] [#]} 41. e6 $1 {[%emt 0:01:20] Strongly threatening exf7.} fxe6 {[%emt 0:01:12]} 42. Rb7+ {[%emt 0:00:04]} Kf6 {[%emt 0:00:11]} 43. Kxh6 {[%emt 0:00:05]} a4 {[%emt 0:00:20]} 44. g5+ {[%emt 0:00:18]} Kf5 {[%emt 0:00:06]} 45. bxa4 {[%emt 0:00:25]} Rxa4 {[%emt 0:00:04]} 46. h5 {[%emt 0:00:40]} e5 {[%emt 0:00:44]} 47. g6 {[%emt 0:00:17]} Ra6 {[%emt 0:00:45]} 48. Kh7 {[%emt 0:01:40]} Kg5 {[%emt 0:00:10]} 49. Re7 {[%emt 0:00:33]} e4 {[%emt 0:00:51]} 50. Rxe4 {[%emt 0:00:23]} Ra7+ {[%emt 0:00:36]} 51. g7 {[%emt 0:00:05]} Kxh5 {[%emt 0:01:43]} 52. Re5+ {[%emt 0:00:19] Weighted Error Value: White=0.36/Black=0.45} 1-0